bitfinex/quotes_ETHUSD_20260120
["timestamp","ask_amount","ask_price","bid_price","bid_amount"]
[1768874233885,0.96161608,3195.2,3194.7,0.00080304]
[1768874234119,0.96361608,3195.0,3194.7,0.00080304]
[1768874234295,0.002,3195.0,3194.7,0.00080304]
[1768874234603,0.002,3195.0,3194.7,0.90994471]
[1768874235894,0.002,3195.0,3194.8,0.90914167]
[1768874238186,0.002,3195.0,3194.7,0.90994471]
[1768874241220,0.002,3195.0,3194.7,4.04012501]
[1768874242724,0.002,3195.0,3194.8,0.90914167]
[1768874246625,0.002,3195.0,3194.8,4.03922629]
[1768874246792,0.002,3195.0,3194.8,3.13008462]
[1768874246994,0.002,3195.0,3194.9,0.98268073]
[1768874248523,0.002,3195.3,3195.0,0.98268073]
[1768874251034,0.002,3195.3,3194.8,4.11273281]
[1768874251843,0.002,3195.3,3194.8,4.09723281]
[1768874252417,0.002,3195.3,3194.9,0.98268073]
[1768874254534,0.002,3195.3,3195.0,0.98268073]
[1768874257532,0.002,3195.3,3195.0,0.98368073]
[1768874262848,0.002,3195.3,3195.0,0.001]
[1768874262849,0.94156364,3195.3,3195.0,0.001]
[1768874263727,0.94156364,3195.3,3189.4,19.36]
[1768874263728,0.93956364,3195.1,3194.1,0.00180304]
[1768874263918,0.93956364,3194.3,3193.7,4.13013643]
[1768874264116,0.93956364,3194.3,3193.8,4.13086507]
[1768874264312,0.00080304,3194.5,3193.8,4.13086507]
[1768874264313,0.93956364,3194.4,3193.9,0.99904141]
[1768874264846,1.45436668,3194.5,3193.9,0.99904141]
[1768874265010,1.45436668,3194.5,3194.0,1.41212792]
[1768874265443,0.94036668,3194.5,3194.0,1.41212792]
[1768874265745,0.00080304,3194.5,3194.1,0.99904141]
[1768874265944,0.00080304,3194.5,3194.1,4.12979431]
[1768874266119,0.00080304,3194.5,3194.2,0.99904141]
[1768874266654,0.00080304,3194.5,3194.1,0.76738386]
[1768874266655,0.94036668,3194.5,3194.1,0.76738386]
[1768874266813,0.94036668,3194.5,3194.1,1.76642527]
[1768874269254,0.94036668,3194.5,3194.1,0.76738386]
[1768874269450,0.94036668,3194.5,3194.4,0.001]
[1768874270129,0.94036668,3194.5,3193.8,4.13090314]
[1768874270130,0.94036668,3194.5,3193.9,0.99904141]
[1768874273960,0.94036668,3194.5,3193.9,4.13000927]
[1768874274486,0.94036668,3194.5,3194.0,0.94006285]
[1768874279736,1.45436668,3194.5,3194.0,0.94006285]
[1768874280442,0.51480304,3194.5,3194.0,0.94006285]
[1768874280769,0.95772265,3194.4,3194.0,0.94006285]
[1768874281138,0.95772265,3194.4,3193.8,4.07187614]
[1768874281336,0.95772265,3194.4,3194.2,0.001]
[1768874283257,0.95772265,3194.3,3194.2,0.001]
[1768874290369,0.95772265,3194.3,3193.8,0.94086605]
[1768874292102,0.95772265,3194.3,3193.8,0.0008032]
[1768874295322,0.95772265,3194.3,3193.8,0.94086605]
[1768874302733,0.95772265,3194.3,3193.8,4.07191265]
[1768874303333,0.95772265,3194.3,3193.8,0.94086605]
[1768874304036,1.48296377,3194.5,3193.9,0.99161989]
[1768874304243,1.48296377,3194.5,3194.1,0.001]
[1768874304244,2.53244426,3194.5,3194.1,0.001]
[1768874304402,0.96816073,3194.4,3194.1,0.001]
[1768874308343,0.00080304,3194.5,3194.1,0.99261989]
[1768874310335,0.00080304,3194.5,3194.2,0.99161989]
[1768874312137,0.00080304,3194.5,3194.3,0.99161989]
[1768874312320,0.00080304,3194.5,3194.4,0.99161989]
[1768874316749,0.00280304,3194.5,3194.4,0.99161989]
[1768874318123,0.00280304,3194.5,3194.2,4.84768423]
[1768874320253,0.00280304,3194.5,3194.2,3.85606434]
[1768874320553,0.00280304,3194.5,3194.3,0.99161989]
[1768874321651,0.00280304,3194.5,3194.3,4.12218646]
[1768874323364,0.00280304,3194.5,3194.3,4.92012321]
[1768874326340,0.00280304,3194.5,3194.4,0.97270808]
[1768874332971,0.00280304,3194.5,3194.4,4.10318641]
[1768874333268,0.002,3195.0,3194.4,4.10318641]
[1768874333269,0.97436395,3195.3,3194.8,0.96321156]
[1768874333645,1.4923629,3195.7,3194.8,0.96321156]
[1768874333834,0.9755609,3195.6,3194.8,0.96321156]
[1768874334037,0.9755609,3195.5,3195.0,0.96321156]
[1768874334268,0.9755609,3195.5,3195.0,1.37253156]
[1768874334439,0.516802,3195.7,3195.0,1.37253156]
[1768874334440,0.97836338,3195.4,3195.0,1.37253156]
[1768874334766,0.97836338,3195.4,3195.0,0.40932]
[1768874336065,0.97836338,3195.4,3195.0,1.37253156]
[1768874336438,0.97836338,3195.4,3195.0,4.50239558]
[1768874336770,0.97836338,3195.4,3195.0,1.37253156]
[1768874337442,0.00280248,3195.4,3195.0,1.37253156]
[1768874338580,0.97836338,3195.4,3195.1,0.45024814]
[1768874338762,0.97836338,3195.4,3194.9,0.96321156]
[1768874339761,0.97836338,3195.4,3194.9,4.0931934]
[1768874340474,0.97836338,3195.4,3194.7,0.96401468]
[1768874341438,0.97836338,3195.4,3194.7,3.13095163]
[1768874341638,0.97836338,3195.4,3194.7,3.13097068]
[1768874341899,0.97836338,3195.4,3194.7,4.81663705]
[1768874342076,0.002,3195.1,3195.0,0.96321156]
[1768874342839,0.002,3195.1,3194.9,4.0931325]
[1768874346160,0.00280248,3195.4,3195.1,0.96321156]
[1768874348177,0.00280248,3195.4,3195.2,4.0929061]
[1768874348483,0.00280248,3195.4,3195.3,0.40929061]
[1768874350181,0.00280248,3195.4,3195.3,3.5388872]
[1768874350380,0.9783629,3195.7,3195.3,3.5388872]
[1768874351462,0.9783629,3195.7,3195.3,1.37250217]
[1768874351667,0.002802,3195.7,3195.3,0.96321156]
[1768874352066,0.002802,3195.7,3195.3,4.09279668]
[1768874353982,0.002,3195.4,3195.3,4.09279668]
[1768874355200,0.002,3195.4,3195.3,0.96321156]
[1768874355767,0.002,3195.4,3195.3,4.09280815]
[1768874355981,0.002,3195.4,3195.3,4.81506658]
[1768874356398,0.002802,3195.7,3195.3,4.81506658]
[1768874359501,0.002802,3195.7,3195.3,1.68546999]
[1768874359796,0.002802,3195.7,3195.3,4.81503132]
[1768874360701,0.002802,3195.7,3195.4,0.96321156]
[1768874361004,0.002802,3195.7,3195.3,3.85181976]
[1768874361005,0.002802,3195.7,3195.5,1.44471469]
[1768874362806,0.002802,3195.7,3195.5,0.48150313]
[1768874364610,0.9397642,3195.7,3195.3,0.72225843]
[1768874364781,0.9397642,3195.7,3195.2,3.12965035]
[1768874364982,0.9397642,3195.7,3195.1,3.12979249]
[1768874365511,0.002,3195.4,3195.1,3.12979249]
[1768874366588,0.002,3195.4,3195.1,4.04906277]
[1768874367396,0.002,3195.4,3195.1,7.17885526]
[1768874367599,0.002,3195.4,3195.2,0.71796578]
[1768874372023,0.002,3195.4,3195.3,3.12959659]
[1768874373824,0.86221049,3195.6,3195.3,3.12959659]
[1768874374023,0.002802,3195.7,3195.3,4.04886687]
[1768874374216,0.002802,3195.7,3195.4,0.91927028]
[1768874374421,0.002802,3195.7,3195.4,1.7089132]
[1768874376596,0.002802,3195.7,3195.4,4.83840916]
[1768874378130,0.002802,3195.7,3195.4,3.91913888]
[1768874379706,0.002802,3195.7,3195.4,4.83840916]
[1768874380126,0.002802,3195.7,3195.4,1.7089132]
[1768874380924,0.002802,3195.7,3194.7,0.00080312]
[1768874380925,5.87906528,3195.5,3194.7,0.00080312]
[1768874381099,0.002802,3195.7,3194.3,0.00080272]
[1768874381100,0.9369622,3194.7,3194.3,0.00080272]
[1768874381306,0.9369622,3194.7,3193.6,0.91927028]
[1768874381307,0.93776492,3194.7,3193.6,0.91927028]
[1768874381514,0.9369622,3194.4,3193.6,0.91927028]
[1768874381714,0.9369622,3194.4,3193.7,0.97585752]
[1768874381914,0.9369622,3194.4,3193.5,0.97666056]
[1768874382156,0.9369622,3194.4,3193.6,0.97585752]
[1768874382332,0.99741931,3194.3,3193.5,0.97666056]
[1768874382652,0.99741931,3194.3,3193.2,0.51580312]
[1768874382799,0.74809975,3193.0,3192.9,0.00080248]
[1768874382999,0.74729727,3192.9,3192.6,0.00080232]
[1768874383226,0.514,3193.0,3192.6,0.00080232]
[1768874383418,0.514,3193.0,3192.6,0.97665984]
[1768874383646,0.514,3193.2,3192.7,0.97585752]
[1768874383853,0.51480248,3193.3,3192.7,0.97585752]
[1768874384053,0.51480248,3193.3,3192.8,0.97585752]
[1768874384210,1.26209975,3193.3,3192.8,0.97585752]
[1768874384411,0.51480248,3193.3,3192.8,0.97585752]
[1768874386544,0.74729727,3193.5,3192.9,0.97666008]
[1768874386849,0.514,3193.5,3193.1,0.97585752]
[1768874387870,5.87906528,3193.2,3192.2,0.00080192]
[1768874388148,0.00080232,3193.0,3192.2,0.00080192]
[1768874388327,5.87906528,3192.7,3192.2,0.00080192]
[1768874388521,0.514,3192.9,3192.2,0.00080192]
[1768874389456,6.39306528,3192.9,3192.2,0.00080192]
[1768874389749,6.39306528,3192.9,3191.9,0.000802]
[1768874389750,0.00080192,3192.6,3191.9,0.000802]
[1768874391526,0.514,3192.5,3191.9,0.97665952]
[1768874392228,0.00080192,3192.6,3191.9,0.97665952]
[1768874392431,0.514,3192.5,3191.9,0.97665952]
[1768874394218,0.514,3192.4,3192.0,0.94433454]
[1768874394423,0.43433313,3192.4,3192.0,0.94433454]
[1768874394620,0.00080192,3192.6,3192.0,0.94433454]
[1768874394840,0.51480192,3192.6,3192.2,0.94433454]
[1768874396349,0.00080192,3192.6,3192.3,0.94433454]
[1768874397851,0.514,3192.9,3192.3,0.94433454]
[1768874399564,0.514,3192.9,3192.4,0.94433454]
[1768874400065,0.00080232,3193.0,3192.4,0.94433454]
[1768874400239,0.00080232,3193.0,3192.6,0.94433454]
[1768874400643,0.00080232,3193.0,3192.5,0.94433454]
[1768874400965,0.00080232,3193.0,3192.6,0.94433454]
[1768874401430,0.002,3192.9,3192.6,0.94433454]
[1768874402061,0.00080232,3193.0,3192.7,0.94433454]
[1768874402264,0.00080232,3193.0,3192.5,0.94433454]
[1768874402556,0.00080232,3193.0,3192.7,0.94433454]
[1768874403266,0.00080232,3193.0,3192.6,0.68233998]
[1768874403444,0.00080232,3193.0,3192.6,1.62667452]
[1768874403767,0.00080232,3193.0,3192.7,0.94433454]
[1768874404567,0.00080312,3193.6,3193.0,0.94433454]
[1768874404768,0.00080312,3193.6,3193.2,0.94433454]
[1768874404951,0.00080312,3193.6,3192.9,0.00080264]
[1768874405157,0.00080312,3193.6,3192.9,0.94513718]
[1768874405747,5.87906528,3193.3,3192.6,0.0008024]
[1768874405949,0.514,3193.2,3192.6,0.0008024]
[1768874406670,5.87986768,3193.0,3192.2,0.001802]
[1768874406996,1.21433734,3192.9,3192.2,0.001802]
[1768874407286,1.21433734,3192.9,3192.3,0.94433454]
[1768874407435,0.0008024,3193.0,3192.3,0.94433454]
[1768874408883,0.0008024,3193.0,3192.4,0.94433454]
[1768874411651,0.0008024,3193.0,3192.5,0.94433454]
[1768874411856,0.0008024,3193.0,3192.6,0.94433454]
[1768874413777,0.0008024,3193.0,3192.7,0.94433454]
[1768874416272,0.0008024,3193.0,3192.3,0.94433454]
[1768874417200,0.0008024,3193.0,3192.3,4.07684793]
[1768874417667,0.514,3192.9,3192.3,0.94433454]
[1768874417861,0.514,3192.9,3192.2,0.94613654]
[1768874418099,0.514,3192.9,3192.2,0.001802]
[1768874418713,0.87866323,3192.9,3192.2,0.001802]
[1768874419797,4.01062505,3192.9,3192.2,0.001802]
[1768874420018,7.14258687,3192.9,3192.2,0.001802]
[1768874420302,3.13304531,3192.6,3191.9,0.000802]
[1768874420488,0.90121106,3192.5,3191.9,0.000802]
[1768874420697,5.87906528,3192.1,3191.6,0.00080248]
[1768874420999,0.51480248,3192.0,3191.3,0.94513814]
[1768874421404,0.51480248,3192.0,3191.3,0.0008036]
[1768874422274,0.51480248,3192.0,3191.0,0.00080304]
[1768874422275,3.13342106,3191.4,3191.0,0.00080304]
[1768874422466,1.72858841,3191.3,3190.5,0.94433454]
[1768874423271,1.72858841,3191.3,3190.4,0.001]
[1768874423470,0.514,3191.3,3190.4,0.001]
[1768874423870,0.514,3191.3,3190.4,0.94765736]
[1768874424085,0.514,3191.3,3190.4,0.001]
[1768874424481,6.26723488,3191.2,3190.4,0.001]
[1768874424986,0.00080304,3191.4,3190.4,0.94765736]
[1768874425190,0.514,3191.1,3190.4,0.94765736]
[1768874425592,0.514,3191.1,3189.7,0.94665736]
[1768874426379,9.40144155,3191.0,3189.7,0.94665736]
[1768874426699,0.00219712,3190.9,3189.7,0.94446024]
[1768874426896,0.00219712,3190.7,3189.6,0.001]
[1768874427114,0.00219712,3190.5,3189.6,0.001]
[1768874427317,0.00219712,3190.5,3189.3,0.94565736]
[1768874428402,0.00319712,3190.4,3189.4,0.94665736]
[1768874430216,3.13430496,3190.5,3189.4,0.94665736]
[1768874430535,0.514,3190.4,3189.6,0.94665736]
[1768874430894,0.514,3190.4,3189.6,3.13515346]
[1768874431095,0.00319712,3190.7,3189.7,0.94665736]
[1768874431326,0.514,3190.6,3189.7,0.94665736]
[1768874431807,9.40055775,3191.3,3189.7,0.94665736]
[1768874431808,0.514,3190.7,3189.7,0.94665736]
[1768874432013,0.514,3190.7,3189.9,0.94665736]
[1768874433938,0.00319712,3190.6,3189.9,0.94665736]
[1768874434137,0.00319712,3190.6,3189.3,0.94665736]
[1768874434660,0.00319712,3190.6,3189.7,0.94665736]
[1768874434814,0.00319712,3190.6,3189.8,0.94665736]
[1768874435021,0.00319712,3190.6,3190.0,0.94665736]
[1768874435645,0.514,3190.7,3190.0,0.94665736]
[1768874435877,0.00319712,3191.3,3190.0,0.94665736]
[1768874436014,0.00319712,3191.1,3190.0,0.94665736]
[1768874436647,0.00319712,3191.1,3190.0,4.08138351]
[1768874436839,0.00319712,3191.1,3190.2,0.94665736]
[1768874437832,0.00319712,3191.0,3190.2,0.94665736]
[1768874438478,0.514,3190.9,3190.2,0.94665736]
[1768874438764,0.514,3191.5,3190.3,0.94665736]
[1768874439123,0.514,3191.6,3190.3,0.94665736]
[1768874439436,0.5158036,3191.7,3190.3,0.94665736]
[1768874439851,0.5158036,3191.7,3190.5,0.94665736]
[1768874440161,0.5158036,3191.7,3190.7,0.94665736]
[1768874441371,3.6489431,3191.7,3190.7,0.94665736]
[1768874441531,0.5158036,3191.7,3190.7,0.94665736]
[1768874442348,0.5158036,3191.7,3190.9,0.95259709]
[1768874443154,3.64895406,3191.7,3190.9,0.95259709]
[1768874443483,0.5158036,3191.7,3190.9,0.95259709]
[1768874443879,0.0018036,3191.7,3190.9,0.95259709]
[1768874444178,0.00500072,3191.7,3190.9,0.95259709]
[1768874445689,3.13814663,3191.7,3190.9,0.95259709]
[1768874445990,0.00400016,3191.4,3190.9,0.95259709]
[1768874447773,0.00319712,3191.3,3190.7,0.95259709]
[1768874448477,0.00080304,3191.4,3190.8,0.95259709]
[1768874448646,0.00080304,3191.4,3190.9,0.95259709]
[1768874448850,0.0018036,3191.7,3191.0,0.00080312]
[1768874449060,0.0018036,3191.7,3191.1,0.95259709]
[1768874451379,0.0018036,3191.7,3191.2,0.95259709]
[1768874452289,0.001,3191.4,3191.2,0.95259709]
[1768874452487,0.001,3191.4,3191.3,0.95259709]
[1768874452791,0.00500016,3191.4,3191.0,0.00080312]
[1768874453793,0.00400016,3191.3,3191.0,0.00080312]
[1768874453966,0.001,3191.4,3191.0,0.00080312]
[1768874454162,0.31444213,3191.4,3191.0,0.00080312]
[1768874454366,0.82844213,3191.4,3191.0,0.00080312]
[1768874454992,0.00400016,3191.3,3191.0,0.00080312]
[1768874455893,0.00400016,3191.3,3190.5,0.90789575]
[1768874456066,0.00400016,3191.2,3190.5,0.90789575]
[1768874456469,0.00400016,3191.2,3190.3,3.13644943]
[1768874456470,0.00400016,3191.2,3190.3,0.90989575]
[1768874457488,0.00400016,3191.2,3190.3,0.002]
[1768874457814,0.68259455,3191.3,3190.3,0.90989575]
[1768874457972,0.51800016,3191.2,3190.3,0.90989575]
[1768874458171,0.00400016,3191.1,3190.3,0.90989575]
[1768874461506,0.00400016,3191.3,3190.4,0.90789575]
[1768874461705,0.514,3191.2,3190.5,0.90789575]
[1768874462110,0.514,3191.3,3190.5,0.90789575]
[1768874463717,0.00180312,3191.4,3190.7,0.90789575]
[1768874463917,0.00180312,3191.4,3190.9,0.90789575]
[1768874468022,0.00180312,3191.4,3191.0,0.90789575]
[1768874470124,0.0018036,3191.7,3191.1,0.90789575]
[1768874473614,0.00580328,3191.6,3191.0,0.0008032]
[1768874474416,0.00580328,3191.6,3191.0,0.90869895]
[1768874476919,0.001,3191.3,3191.0,0.90869895]
[1768874477216,0.001,3191.3,3191.0,3.13461495]
[1768874477421,0.001,3191.3,3191.1,0.90789575]
[1768874477617,0.0018036,3191.7,3191.1,0.90789575]
[1768874478115,0.514,3191.6,3191.2,0.90789575]
[1768874479107,0.00680328,3191.5,3191.0,0.90869895]
[1768874481111,0.00680328,3191.4,3190.8,0.002]
[1768874481313,0.00680328,3191.3,3190.8,0.002]
[1768874482223,0.00680328,3191.3,3190.8,0.90989575]
[1768874485622,3.14032598,3191.3,3190.8,0.90989575]
[1768874485827,0.00680328,3191.3,3190.8,0.90989575]
[1768874488341,0.001,3191.2,3190.8,0.90989575]
[1768874488518,0.514,3191.1,3190.8,0.90989575]
[1768874493561,0.0008032,3191.4,3190.8,3.54039358]
[1768874493718,0.0008032,3191.4,3190.9,0.93033886]
[1768874494838,0.0008032,3191.4,3191.0,0.93033886]
[1768874500059,0.00860648,3191.4,3190.8,1.33673793]
[1768874500355,0.00860648,3191.4,3190.8,0.93233886]
[1768874501462,0.00780328,3191.3,3190.8,0.002]
[1768874501830,0.00780328,3191.3,3190.8,0.97988264]
[1768874505062,0.514,3191.2,3190.8,3.13599225]
[1768874505361,0.514,3191.3,3191.0,0.97788264]
[1768874505659,0.0008032,3191.4,3191.0,0.97788264]
[1768874505835,0.0008032,3191.4,3191.1,0.97788264]
[1768874508062,0.00860648,3191.4,3190.9,1.29148187]
[1768874509563,0.00860648,3191.4,3190.9,0.97788264]
[1768874510068,0.0008032,3191.4,3190.9,0.97788264]
[1768874510359,0.0008032,3191.4,3191.0,0.97788264]
[1768874512584,0.0008032,3191.4,3191.1,0.97788264]
[1768874514089,0.05847534,3191.4,3190.8,0.002]
[1768874514285,0.05847534,3191.4,3190.8,0.97190489]
[1768874515478,0.05847534,3191.4,3190.9,0.96990489]
[1768874515679,0.0008032,3191.4,3191.0,0.96990489]
[1768874519770,0.0008032,3191.4,3191.1,0.96990489]
[1768874519987,0.0018036,3191.7,3191.1,0.96990489]
[1768874519988,0.0018036,3191.7,3191.2,0.96990489]
[1768874520196,0.16746222,3191.7,3191.0,0.97070817]
[1768874520364,0.16565862,3191.6,3191.0,0.97070817]
[1768874520699,0.16565862,3191.5,3191.0,0.00080328]
[1768874521363,0.18041351,3191.3,3190.8,0.002]
[1768874521555,0.18041351,3191.0,3190.5,0.002]
[1768874521775,0.18041351,3191.0,3190.3,0.002]
[1768874522063,0.17841351,3190.8,3189.9,0.96990489]
[1768874522277,0.19098543,3190.6,3189.9,0.96990489]
[1768874523575,0.19098543,3190.6,3190.3,0.002]
[1768874523889,0.20539582,3190.3,3189.7,0.96990489]
[1768874524997,0.21964194,3190.6,3190.0,0.97190489]
[1768874525294,0.514,3190.4,3190.0,0.97190489]
[1768874526999,0.76164203,3190.4,3190.0,0.97190489]
[1768874527903,0.514,3190.4,3190.0,0.97190489]
[1768874531786,0.31487558,3190.6,3190.0,0.97190489]
[1768874531985,0.514,3190.5,3190.0,0.97190489]
[1768874532596,0.514,3190.5,3190.1,0.96990489]
[1768874532797,0.514,3190.8,3190.1,0.96990489]
[1768874535016,0.86738539,3190.8,3190.1,0.96990489]
[1768874535576,0.514,3190.8,3190.3,0.97190489]
[1768874535776,0.001,3190.5,3190.3,0.97190489]
[1768874536299,0.36590894,3191.0,3190.3,0.002]
[1768874536497,2.79480328,3191.4,3190.6,0.96990489]
[1768874536874,2.79480328,3191.4,3190.7,0.96990489]
[1768874537077,0.3913649,3191.4,3190.7,0.96990489]
[1768874539210,0.3913649,3191.4,3190.8,0.96990489]
[1768874540815,0.00080328,3191.4,3190.9,0.96990489]
[1768874542018,0.00080328,3191.4,3191.1,0.96990489]
[1768874548586,0.00080328,3191.4,3191.2,1.18711575]
[1768874548797,0.52888108,3191.7,3191.2,1.18711575]
[1768874548798,0.0018036,3191.7,3191.2,1.18711575]
[1768874549100,0.0018036,3191.7,3191.4,1.18711575]
[1768874552635,0.0018036,3191.7,3191.1,1.18711575]
[1768874552636,0.5703206,3191.7,3191.1,1.18711575]
[1768874552814,0.5703206,3191.7,3191.0,0.00080336]
[1768874553006,0.5703206,3191.7,3191.0,1.18791911]
[1768874553336,0.5703206,3191.7,3191.0,1.71254605]
[1768874553634,0.5703206,3191.7,3191.1,1.18711575]
[1768874555201,0.0018036,3191.7,3191.2,1.18711575]
[1768874557137,0.0018036,3191.7,3191.3,1.18711575]
[1768874557342,0.0018036,3191.7,3191.4,1.18711575]
[1768874559841,0.0018036,3191.7,3191.5,1.18711575]
[1768874571916,0.00080248,3192.0,3191.4,1.22836466]
[1768874572123,0.00080248,3192.0,3191.3,9.77181536]
[1768874572124,0.00080248,3192.0,3191.6,1.22836466]
[1768874572423,0.514,3192.2,3191.6,5.89288098]
[1768874572656,0.514,3192.2,3191.8,1.22836466]
[1768874574121,0.000802,3192.3,3191.8,3.13297698]
[1768874574521,0.78026076,3192.2,3191.6,0.00080256]
[1768874575151,0.78783496,3192.1,3191.6,0.00080256]
[1768874575877,0.78783496,3191.9,3191.6,0.00080256]
[1768874577328,3.13270377,3192.2,3191.6,1.35488749]
[1768874577329,0.514,3192.2,3191.6,1.35488749]
[1768874579352,0.514,3192.2,3191.7,1.35408493]
[1768874579551,0.514,3192.2,3191.8,1.80289374]
[1768874581060,0.000802,3192.3,3191.9,1.35408493]
[1768874581563,0.000802,3192.3,3192.0,1.35408493]
[1768874581960,0.000802,3192.6,3192.1,1.35408493]
[1768874582258,0.000802,3192.6,3192.3,1.35408493]
[1768874584562,0.002802,3192.6,3192.3,1.35408493]
[1768874590207,0.5148024,3193.0,3192.5,1.35408493]
[1768874593413,0.91014538,3192.9,3192.2,1.86888701]
[1768874593969,0.91014538,3192.9,3192.3,1.35408493]
[1768874597005,0.002,3192.6,3192.3,1.35408493]
[1768874598034,0.002,3192.6,3192.4,1.35408493]
[1768874599130,0.002,3192.9,3192.4,1.35408493]
[1768874599606,0.0008024,3193.0,3192.4,1.35408493]
[1768874599941,0.0008024,3193.0,3192.7,1.35408493]
[1768874604334,0.0008024,3193.0,3192.8,1.40817987]
[1768874604832,0.00280264,3193.3,3192.7,1.40817987]
[1768874605260,0.00280264,3193.3,3192.8,1.40817987]
[1768874605966,0.00280264,3193.3,3192.9,1.40817987]
[1768874606161,0.99190922,3193.2,3192.6,0.00080248]
[1768874606364,0.99110674,3192.9,3192.1,1.92217987]
[1768874606659,0.99110674,3192.9,3192.2,1.40898195]
[1768874609132,0.99110674,3192.9,3192.2,0.00080208]
[1768874609339,1.00647458,3192.8,3192.2,0.00080208]
[1768874610150,1.01149932,3192.6,3191.8,0.001]
[1768874610441,1.0123014,3192.3,3191.8,0.001]
[1768874613882,0.00080208,3192.3,3191.8,1.40917987]
[1768874615040,1.03175387,3192.3,3191.8,1.40917987]
[1768874616293,1.04036486,3192.2,3191.8,1.40917987]
[1768874616439,1.04036486,3192.2,3191.6,0.00080256]
[1768874616641,1.03936486,3192.0,3191.6,0.00080256]
[1768874618359,1.04855642,3192.2,3191.6,1.40898243]
[1768874619400,1.05306757,3192.1,3191.6,0.00080256]
[1768874619599,1.05306757,3192.1,3191.6,1.40898243]
[1768874620001,1.05306757,3192.0,3191.6,1.40898243]
[1768874620497,1.05752699,3192.2,3191.6,1.40898243]
[1768874621499,0.00080208,3192.3,3191.7,1.40817987]
[1768874621668,1.06709944,3192.3,3191.7,1.40817987]
[1768874621862,0.00080208,3192.3,3191.7,1.40817987]
[1768874622068,0.00080208,3192.3,3191.9,1.45917324]
[1768874622819,0.002,3192.2,3191.9,1.45917324]
[1768874626123,1.16518963,3192.2,3191.6,0.00080256]
[1768874626305,1.16318963,3192.1,3191.6,0.00080256]
[1768874626490,1.16318963,3192.0,3191.6,0.00080256]
[1768874632602,1.18847141,3191.9,3191.6,0.00080256]
[1768874635545,1.71837928,3192.1,3191.6,1.52495568]
[1768874636108,1.2082375,3192.0,3191.6,1.52495568]
[1768874637342,1.2082375,3192.0,3191.6,0.00080256]
[1768874640456,2.28288945,3192.0,3191.6,0.00080256]
[1768874640755,1.22321973,3191.9,3191.6,0.00080256]
[1768874641630,5.88964155,3191.9,3191.3,1.5249568]
[1768874641940,1.22686512,3191.8,3191.3,1.5249568]
[1768874642440,4.36351508,3191.8,3191.3,1.5249568]
[1768874642662,1.66681785,3191.7,3191.3,1.5249568]
[1768874643146,1.23402736,3191.6,3191.1,1.52415312]
[1768874643346,1.23402736,3191.6,3191.0,0.00080336]
[1768874644217,1.23755073,3191.5,3191.0,0.00080336]
[1768874644418,1.67463213,3191.4,3191.0,0.00080336]
[1768874644646,0.4370814,3191.4,3191.0,0.00080336]
[1768874644957,1.23755073,3191.3,3190.5,1.52415312]
[1768874645342,0.514,3191.3,3190.5,1.52415312]
[1768874645531,1.24103444,3191.1,3190.5,1.52415312]
[1768874646333,1.24103444,3191.1,3190.6,1.52415312]
[1768874646534,1.92862818,3191.2,3190.6,1.52415312]
[1768874647068,0.68415263,3191.2,3190.6,1.52415312]
[1768874647250,1.76187219,3191.3,3190.6,1.52415312]
[1768874648477,0.514,3191.3,3190.7,1.52415312]
[1768874650577,0.514,3191.3,3190.8,1.52415312]
[1768874652253,1.26430047,3191.2,3190.8,1.52415312]
[1768874652449,1.26430047,3191.2,3190.3,0.002]
[1768874652450,1.26430047,3191.2,3190.4,1.52415312]
[1768874652661,1.26430047,3191.0,3190.4,1.52415312]
[1768874653180,1.2674761,3190.9,3190.4,1.52415312]
[1768874654261,1.2674761,3190.9,3190.3,0.002]
[1768874654460,1.2674761,3190.9,3190.3,1.52615312]
[1768874654766,1.27061466,3190.8,3190.3,1.52615312]
[1768874654967,1.7110683,3190.7,3190.3,1.52615312]
[1768874655357,1.7110683,3190.7,3190.0,0.002]
[1768874655358,1.27171537,3190.3,3189.3,1.52415312]
[1768874655680,1.27171537,3189.9,3189.3,1.52415312]
[1768874655869,0.71613569,3189.8,3189.3,1.52415312]
[1768874656049,1.27171537,3189.9,3189.3,1.52415312]
[1768874657265,7.16747027,3189.8,3189.3,1.52415312]
[1768874657580,1.27782872,3189.7,3189.2,0.00080136]
[1768874659007,1.27782872,3189.7,3188.9,0.00080136]
[1768874659008,1.28084281,3189.6,3188.9,0.00080136]
[1768874659166,1.28380371,3189.2,3188.6,1e-08]
[1768874659363,1.28380371,3189.1,3188.6,1e-08]
[1768874660000,1.28380371,3188.9,3188.0,0.000802]
[1768874660505,1.28594857,3188.6,3188.0,0.000802]
[1768874660692,1.28594857,3188.5,3188.0,0.000802]
[1768874660892,1.46602361,3188.5,3188.0,0.000802]
[1768874661200,1.28888252,3188.4,3188.0,0.000802]
[1768874662169,0.18007504,3188.5,3188.0,0.000802]
[1768874662379,1.4718392,3188.5,3188.0,0.000802]
[1768874663266,1.29743052,3188.4,3187.2,1.49207888]
[1768874663600,1.49601444,3188.4,3187.2,1.49207888]
[1768874663776,1.49601444,3188.4,3187.0,1.49207888]
[1768874664704,0.515,3188.3,3187.6,1.49207888]
[1768874664873,0.515,3188.3,3187.8,1.49207888]
[1768874665481,5.3388117,3188.3,3187.8,1.49207888]
[1768874666090,2.20226976,3188.3,3187.8,1.49207888]
[1768874666413,0.90007595,3188.3,3187.8,1.49207888]
[1768874666613,4.03659684,3188.3,3187.8,1.49207888]
[1768874667193,0.90007595,3188.3,3187.8,1.49207888]
[1768874668118,0.515,3188.3,3187.8,1.49207888]
[1768874669931,0.515,3188.3,3188.2,1.49207888]
[1768874670335,0.000802,3188.4,3188.2,1.49207888]
[1768874670534,0.51580184,3188.7,3188.2,1.49207888]
[1768874671208,1.31887252,3188.6,3188.1,0.002]
[1768874671408,1.31887252,3188.5,3188.1,0.002]
[1768874671731,4.4551468,3188.5,3188.1,0.002]
[1768874672033,1.31887252,3188.5,3188.1,0.002]
[1768874672330,4.45517392,3188.5,3188.1,0.002]
[1768874672535,1.32222172,3188.4,3187.8,0.002]
[1768874672831,0.52738687,3188.4,3187.8,1.49407888]
[1768874673034,1.36272981,3188.3,3187.8,1.49407888]
[1768874675041,3.13723102,3188.4,3187.8,1.49407888]
[1768874675242,4.50790237,3188.4,3187.8,1.49407888]
[1768874675535,5.27229488,3188.4,3187.8,1.49407888]
[1768874676106,5.27225603,3188.4,3187.8,1.49407888]
[1768874677119,1.37581475,3188.3,3187.8,1.49407888]
[1768874677426,5.27739943,3188.4,3187.8,1.49407888]
[1768874679313,5.28240498,3188.4,3187.8,1.49407888]
[1768874679636,2.14603193,3188.4,3187.8,1.49407888]
[1768874679837,0.00080208,3188.4,3187.8,1.49407888]
[1768874680037,1.3808203,3188.3,3187.8,1.49407888]